bitfinex/quotes_BTCUSD_20220120
["timestamp","ask_amount","ask_price","bid_price","bid_amount"]
[1642684025704,0.09150975,42096.0,42093.0,6.876e-05]
[1642684026108,0.05090975,42096.0,42093.0,6.876e-05]
[1642684026305,0.00090975,42096.0,42090.0,0.00012033]
[1642684026507,0.1,42097.0,42093.0,0.014]
[1642684026709,0.10090976,42097.0,42093.0,0.014]
[1642684027153,0.07268,42096.0,42093.0,0.014]
[1642684027352,0.1321,42096.0,42093.0,0.014]
[1642684027552,0.1821,42096.0,42093.0,0.014]
[1642684027750,0.1821,42096.0,42090.0,0.00012033]
[1642684027951,0.10942,42096.0,42090.0,0.00012033]
[1642684028350,0.10942,42096.0,42090.0,0.03012033]
[1642684028555,0.05,42096.0,42090.0,0.03012033]
[1642684028756,0.05,42096.0,42091.0,0.00010314]
[1642684028951,0.05,42097.0,42091.0,0.00010314]
[1642684029152,0.04487458,42097.0,42091.0,0.00010314]
[1642684029350,0.04487458,42097.0,42092.0,0.3]
[1642684030350,0.04487458,42097.0,42092.0,0.32]
[1642684030795,0.04487458,42097.0,42092.0,0.02]
[1642684031600,0.04539931,42097.0,42092.0,0.02]
[1642684031797,0.04539931,42097.0,42091.0,0.00010314]
[1642684032096,0.04539931,42097.0,42090.0,0.00012033]
[1642684032497,0.26816854,42097.0,42091.0,0.025]
[1642684032698,0.26907038,42097.0,42091.0,0.025]
[1642684032901,0.26907038,42097.0,42092.0,8.595e-05]
[1642684033701,0.26816854,42097.0,42092.0,8.595e-05]
[1642684033932,0.26907042,42097.0,42092.0,8.595e-05]
[1642684034097,0.09577646,42097.0,42090.0,0.00012033]
[1642684034552,0.09577646,42097.0,42092.0,0.017]
[1642684034952,0.09487458,42097.0,42092.0,0.017]
[1642684035152,0.09577646,42097.0,42092.0,0.017]
[1642684035753,0.09577646,42097.0,42090.0,0.00012033]
[1642684036156,0.09487458,42097.0,42090.0,0.00012033]
[1642684036360,0.09577642,42097.0,42090.0,0.00012033]
[1642684036654,0.09577642,42097.0,42090.0,0.03012033]
[1642684037056,0.09577642,42097.0,42091.0,0.00010314]
[1642684037356,0.09487458,42097.0,42091.0,0.00010314]
[1642684037558,0.09577642,42097.0,42091.0,0.00010314]
[1642684038199,0.09577642,42097.0,42090.0,0.00012033]
[1642684038398,0.09577642,42097.0,42091.0,0.025]
[1642684038600,0.09487458,42097.0,42091.0,0.025]
[1642684038798,0.09577644,42097.0,42092.0,8.595e-05]
[1642684039800,0.09487458,42097.0,42092.0,8.595e-05]
[1642684039998,0.09577646,42097.0,42092.0,8.595e-05]
[1642684040199,0.09577646,42097.0,42090.0,0.00012033]
[1642684040398,0.09577646,42097.0,42092.0,0.015]
[1642684040998,0.09487458,42097.0,42092.0,0.015]
[1642684041199,0.09577646,42097.0,42092.0,0.015]
[1642684041802,0.09577646,42097.0,42094.0,0.00131768]
[1642684042054,0.09487458,42097.0,42094.0,0.00131768]
[1642684042255,0.09577646,42097.0,42094.0,0.00131768]
[1642684042454,0.09577646,42097.0,42094.0,0.00731768]
[1642684043055,0.07268,42096.0,42094.0,0.00731768]
[1642684043656,0.07268,42096.0,42094.0,0.00131768]
[1642684044455,0.07268,42096.0,42094.0,0.00831768]
[1642684045255,0.07260227,42096.0,42094.0,0.00831768]
[1642684045709,0.07260227,42096.0,42094.0,0.00131768]
[1642684045905,0.09577647,42097.0,42094.0,0.00131768]
[1642684046505,0.09577647,42097.0,42094.0,0.00831768]
[1642684046910,0.09487458,42097.0,42094.0,0.007]
[1642684047107,0.09481458,42097.0,42094.0,0.007]
[1642684048307,0.09481458,42097.0,42093.0,0.22259552]
[1642684048508,0.09481458,42097.0,42094.0,0.013]
[1642684048706,0.04994,42097.0,42094.0,0.013]
[1642684049108,0.0009019,42098.0,42096.0,0.19528168]
[1642684049309,0.01450842,42099.0,42096.0,0.19528168]
[1642684049572,0.01450842,42099.0,42094.0,0.013]
[1642684049573,0.0009019,42098.0,42094.0,0.013]
[1642684049766,0.0009019,42098.0,42093.0,0.22259552]
[1642684049968,2.75460462,42096.0,42090.0,0.00012033]
[1642684050167,0.072618,42095.0,42090.0,0.00012033]
[1642684050567,0.072028,42095.0,42090.0,0.03712033]
[1642684050969,0.072028,42095.0,42091.0,0.00010314]
[1642684051369,0.05,42096.0,42091.0,0.00010314]
[1642684051572,0.05090181,42097.0,42091.0,0.00010314]
[1642684051871,0.05090184,42097.0,42091.0,0.00010314]
[1642684052270,0.05090184,42097.0,42090.0,0.00012033]
[1642684052471,0.0476,42096.0,42091.0,0.025]
[1642684052771,0.0476,42096.0,42092.0,8.595e-05]
[1642684053205,0.0472901,42096.0,42092.0,8.595e-05]
[1642684054508,0.0472901,42096.0,42092.0,0.02008595]
[1642684054712,0.0472901,42096.0,42092.0,0.02]
[1642684055709,0.0472901,42096.0,42094.0,0.2259492]
[1642684056511,0.0472901,42096.0,42094.0,0.014]
[1642684056710,1.55645559,42095.0,42094.0,0.014]
[1642684056956,0.122026,42095.0,42094.0,0.014]
[1642684057154,0.172026,42095.0,42094.0,0.014]
[1642684058157,0.172026,42095.0,42093.0,0.22825686]
[1642684058357,0.1,42095.0,42093.0,0.22825686]
[1642684058556,0.06,42095.0,42094.0,0.009]
[1642684058956,0.01,42095.0,42094.0,0.009]
[1642684059756,0.10090188,42097.0,42093.0,0.22825686]
[1642684059964,0.10090188,42097.0,42090.0,0.00012033]
[1642684060158,0.1,42097.0,42090.0,0.00012033]
[1642684060358,0.10090189,42097.0,42090.0,0.00012033]
[1642684060560,0.10990189,42097.0,42090.0,0.03312033]
[1642684060802,0.24,42095.0,42090.0,0.03312033]
[1642684061000,0.34,42095.0,42091.0,0.00010314]
[1642684062298,0.34,42095.0,42090.0,0.00012033]
[1642684062504,0.35,42095.0,42091.0,0.019]
[1642684062899,0.35,42095.0,42092.0,8.595e-05]
[1642684063802,0.34,42095.0,42092.0,8.595e-05]
[1642684064201,0.34,42095.0,42090.0,0.00012033]
[1642684064453,0.349,42095.0,42092.0,0.015]
[1642684065654,0.349,42095.0,42090.0,0.00012033]
[1642684065855,0.34,42095.0,42090.0,0.00012033]
[1642684066057,0.34,42095.0,42090.0,0.30367657]
[1642684066455,0.349,42095.0,42091.0,0.00010314]
[1642684067761,0.34,42095.0,42091.0,0.00010314]
[1642684068203,0.34,42095.0,42090.0,0.00012033]
[1642684068602,0.349,42095.0,42091.0,0.02]
[1642684069010,0.349,42095.0,42092.0,8.595e-05]
[1642684069011,0.38461596,42094.0,42092.0,8.595e-05]
[1642684069207,1.25904196,42093.0,42092.0,8.595e-05]
[1642684069405,1.35793846,42093.0,42092.0,8.595e-05]
[1642684069603,1.50793846,42093.0,42092.0,8.595e-05]
[1642684070004,1.1709225,42093.0,42092.0,8.595e-05]
[1642684070205,0.46951443,42091.0,42090.0,0.00012033]
[1642684070406,1.09369043,42091.0,42090.0,0.00012033]
[1642684070603,1.29369043,42091.0,42090.0,0.00012033]
[1642684071104,0.79369043,42091.0,42090.0,0.00012033]
[1642684071305,1.18581804,42091.0,42090.0,0.00012033]
[1642684072661,1.19781804,42091.0,42090.0,0.00012033]
[1642684073455,1.19781804,42091.0,42090.0,5.423e-05]
[1642684073858,1.18581804,42091.0,42090.0,5.423e-05]
[1642684074657,1.19781804,42091.0,42090.0,5.423e-05]
[1642684075927,1.18581804,42091.0,42090.0,5.423e-05]
[1642684076527,1.19781804,42091.0,42090.0,5.423e-05]
[1642684076727,1.39781804,42091.0,42090.0,5.423e-05]
[1642684076928,2.66081804,42091.0,42090.0,5.423e-05]
[1642684077329,1.39781804,42091.0,42090.0,5.423e-05]
[1642684077729,0.71630361,42091.0,42090.0,5.423e-05]
[1642684078529,0.72630361,42091.0,42090.0,5.423e-05]
[1642684079131,0.92630361,42091.0,42090.0,5.423e-05]
[1642684079962,0.71630361,42091.0,42090.0,5.423e-05]
[1642684080165,0.224176,42091.0,42090.0,5.423e-05]
[1642684080363,0.63945235,42091.0,42090.0,5.423e-05]
[1642684080562,0.65157328,42091.0,42090.0,5.423e-05]
[1642684080969,0.90157328,42091.0,42090.0,5.423e-05]
[1642684081166,1.13798795,42091.0,42090.0,5.423e-05]
[1642684081765,1.12698795,42091.0,42090.0,0.00137769]
[1642684082565,1.13998795,42091.0,42090.0,0.00137769]
[1642684083908,0.88998795,42091.0,42090.0,0.00137769]
[1642684085505,1.08998795,42091.0,42090.0,0.00137769]
[1642684085906,1.07698795,42091.0,42090.0,0.00137769]
[1642684086708,1.08998795,42091.0,42090.0,5.423e-05]
[1642684086959,0.98998795,42091.0,42090.0,5.423e-05]
[1642684087161,1.08998795,42091.0,42088.0,8.861e-05]
[1642684087359,0.072026,42089.0,42088.0,8.861e-05]
[1642684087560,0.119626,42089.0,42088.0,8.861e-05]
[1642684087760,0.169626,42089.0,42088.0,8.861e-05]
[1642684088159,0.169626,42089.0,42086.0,0.00121086]
[1642684088361,0.05,42088.0,42087.0,0.0001058]
[1642684088561,0.169626,42088.0,42087.0,0.0001058]
[1642684089368,0.169626,42088.0,42085.0,0.00121088]
[1642684089567,0.169626,42088.0,42086.0,0.00012299]
[1642684090468,0.169626,42088.0,42085.0,0.00121089]
[1642684090708,0.180626,42088.0,42086.0,0.00012299]
[1642684091710,0.072026,42087.0,42085.0,0.00121089]
[1642684091910,0.122026,42087.0,42086.0,0.00012299]
[1642684092111,0.43178041,42087.0,42086.0,0.00012299]
[1642684092512,0.53633041,42087.0,42086.0,0.00012299]
[1642684092712,0.54733041,42087.0,42086.0,0.00012299]
[1642684092918,0.20102949,42086.0,42084.0,0.0012109]
[1642684093113,0.25102949,42086.0,42085.0,0.00014018]
[1642684093313,0.62434224,42086.0,42085.0,0.00014018]
[1642684094113,0.62434224,42086.0,42083.0,0.00121091]
[1642684094315,0.072026,42085.0,42084.0,8.246e-05]
[1642684094576,0.122026,42085.0,42084.0,8.246e-05]
[1642684095173,0.42133713,42085.0,42084.0,8.246e-05]
[1642684095371,0.42133713,42085.0,42082.0,0.00121093]
[1642684095574,0.42133713,42085.0,42083.0,9.965e-05]
[1642684096577,0.43333713,42085.0,42082.0,0.00121094]
[1642684096776,0.43333713,42085.0,42083.0,9.965e-05]
[1642684097774,0.43333713,42085.0,42082.0,0.00121094]
[1642684097974,0.42133713,42085.0,42083.0,9.965e-05]
[1642684098219,0.29858602,42084.0,42083.0,9.965e-05]
[1642684098619,0.34858602,42084.0,42083.0,9.965e-05]
[1642684098919,0.062,42085.0,42082.0,0.00121094]
[1642684099319,0.062,42085.0,42083.0,9.965e-05]
[1642684099519,0.30189774,42084.0,42083.0,9.965e-05]
[1642684099921,0.42392374,42084.0,42083.0,9.965e-05]
[1642684100124,0.42392374,42084.0,42082.0,0.00121094]
[1642684100323,0.41436326,42083.0,42082.0,0.00121094]
[1642684100522,0.46436326,42083.0,42082.0,0.00121094]
[1642684100723,0.46436326,42083.0,42082.0,0.00132778]
[1642684100920,0.64533486,42083.0,42082.0,0.00011684]
[1642684101122,0.69293486,42083.0,42082.0,0.00011684]
[1642684101324,0.69293486,42083.0,42081.0,0.00013403]
[1642684101520,0.35762503,42082.0,42081.0,0.00013403]
[1642684101727,0.40522503,42082.0,42081.0,0.00013403]
[1642684102156,0.64522503,42082.0,42081.0,0.00013403]
[1642684102356,0.71725103,42082.0,42081.0,0.00013403]
[1642684102759,0.72925103,42082.0,42081.0,0.00013403]
[1642684103958,0.71725103,42082.0,42081.0,0.00013403]
[1642684104658,0.72925103,42082.0,42081.0,0.00013403]
[1642684105059,0.526196,42082.0,42081.0,0.00013403]
[1642684105920,0.514196,42082.0,42081.0,0.00013403]
[1642684106617,0.527196,42082.0,42081.0,0.00013403]
[1642684107214,0.86511614,42082.0,42081.0,0.00013403]
[1642684108017,0.85211614,42082.0,42081.0,0.00013403]
[1642684108716,0.86611614,42082.0,42081.0,0.00013403]
[1642684109863,0.85211614,42082.0,42081.0,0.00013403]
[1642684110664,0.86611614,42082.0,42081.0,0.00013403]
[1642684111865,0.85211614,42082.0,42081.0,0.00013403]
[1642684112464,1.35211614,42082.0,42081.0,0.00013403]
[1642684112674,1.122026,42081.0,42080.0,0.22508281]
[1642684112871,2.10631196,42081.0,42080.0,0.15493161]
[1642684113064,2.25631196,42081.0,42080.0,0.15493161]
[1642684113316,1.919296,42081.0,42080.0,0.15493161]
[1642684113611,3.29414431,42081.0,42080.0,0.15493161]
[1642684114012,3.31030431,42081.0,42080.0,0.15493161]
[1642684114212,0.2,42076.0,42064.0,2.1851]
[1642684114414,0.05946,42072.0,42064.0,2.1851]
[1642684114616,0.0476,42071.0,42065.0,0.00027504]
[1642684114819,0.076596,42070.0,42065.0,0.00027504]
[1642684115013,0.076596,42070.0,42060.0,0.10474612]
[1642684115014,2.38832892,42067.0,42061.0,0.0003438]
[1642684115214,0.3200616,42066.0,42061.0,0.0003438]
[1642684115613,0.26860925,42066.0,42065.0,0.00121121]
[1642684115813,0.119626,42066.0,42065.0,0.00121121]
[1642684116615,0.128626,42066.0,42059.0,0.25486005]
[1642684116966,0.31715247,42065.0,42063.0,0.00121124]
[1642684117265,0.36475247,42065.0,42064.0,0.00029223]
[1642684117470,0.46475247,42065.0,42064.0,0.00029223]
[1642684118063,0.47214516,42065.0,42062.0,0.00121126]
[1642684118264,0.47214516,42065.0,42063.0,0.00030942]
[1642684118463,0.32116196,42064.0,42063.0,0.00030942]
[1642684119166,0.32573196,42064.0,42061.0,0.00121127]
[1642684119465,0.32573196,42064.0,42062.0,0.00032661]
[1642684119964,1.54695046,42063.0,42062.0,0.00032661]
[1642684120172,0.072026,42063.0,42062.0,0.00032661]
[1642684120362,0.05,42063.0,42062.0,0.00032661]
[1642684120567,0.05,42063.0,42061.0,0.00121128]
[1642684120818,0.022,42063.0,42062.0,0.00032661]
[1642684121011,0.072,42063.0,42062.0,0.00032661]
[1642684121815,0.072,42063.0,42060.0,0.00157228]
[1642684122014,0.072,42063.0,42061.0,0.0003438]
[1642684122215,0.05,42063.0,42061.0,0.0003438]
[1642684122616,0.1476,42065.0,42061.0,0.0003438]
[1642684122825,0.006,42063.0,42061.0,0.0003438]
[1642684123018,0.006,42063.0,42060.0,0.00157229]
[1642684123219,0.006,42063.0,42061.0,0.0003438]
[1642684123928,0.24,42063.0,42061.0,0.0003438]
[1642684124122,0.29,42063.0,42061.0,0.0003438]
[1642684124761,0.296,42063.0,42061.0,0.0003438]
[1642684126564,0.29,42063.0,42060.0,0.00157229]
[1642684126765,0.295,42063.0,42061.0,0.0003438]
[1642684127665,0.295,42063.0,42060.0,0.00157229]
[1642684127866,0.295,42063.0,42061.0,0.0003438]
[1642684128069,0.29,42063.0,42061.0,0.0003438]
[1642684128808,0.296,42063.0,42060.0,0.00157229]
[1642684129208,0.296,42063.0,42061.0,0.0003438]
[1642684130011,0.29,42063.0,42061.0,0.0003438]
[1642684130212,0.29,42063.0,42060.0,0.00157229]
[1642684130411,0.29,42063.0,42061.0,0.0003438]
[1642684130811,0.072026,42062.0,42061.0,0.0003438]
[1642684131413,0.298,42063.0,42060.0,0.0012113]
[1642684131613,0.298,42063.0,42061.0,0.0003438]
[1642684132064,0.29,42063.0,42061.0,0.0003438]
[1642684132267,0.55346237,42062.0,42061.0,0.0003438]
[1642684132468,0.85132993,42062.0,42060.0,0.0012113]
[1642684132667,0.85132993,42062.0,42061.0,0.0003438]
[1642684132668,0.82930393,42062.0,42061.0,0.0003438]
[1642684133068,0.77308837,42062.0,42061.0,0.0003438]
[1642684133469,0.42308837,42062.0,42061.0,0.0003438]
[1642684133668,0.42308837,42062.0,42059.0,0.00121131]
[1642684133669,0.22086162,42062.0,42059.0,0.00121131]
[1642684133870,0.22086162,42062.0,42060.0,0.00036099]
[1642684133871,0.1476,42062.0,42060.0,0.00036099]
[1642684134667,0.1556,42062.0,42060.0,0.00036099]
[1642684134868,0.1556,42062.0,42059.0,0.00121131]
[1642684135069,0.1556,42062.0,42060.0,0.00036099]
[1642684135569,0.322026,42061.0,42060.0,0.00036099]
[1642684136012,0.422026,42061.0,42060.0,0.00036099]
[1642684136216,0.422026,42061.0,42059.0,0.00121131]
[1642684136413,0.422026,42061.0,42060.0,0.00029841]
[1642684136812,0.477626,42061.0,42060.0,0.00029841]
[1642684137213,0.482196,42061.0,42060.0,0.00029841]
[1642684137412,0.482196,42061.0,42058.0,0.00121132]
[1642684137613,0.482196,42061.0,42059.0,0.0003156]
[1642684138013,0.232196,42061.0,42059.0,0.0003156]
[1642684138420,0.132196,42061.0,42059.0,0.0003156]
[1642684138615,0.124196,42061.0,42058.0,0.00121133]
[1642684138814,0.132196,42061.0,42059.0,0.0003156]
[1642684139474,0.23029405,42060.0,42059.0,0.0003156]
[1642684139673,0.072026,42059.0,42053.0,0.33660805]
[1642684139872,0.28029405,42060.0,42052.0,0.23415226]
[1642684140071,0.28029405,42060.0,42054.0,8.595e-05]
[1642684140474,0.1,42060.0,42054.0,8.595e-05]
[1642684140673,0.108,42060.0,42054.0,8.595e-05]
[1642684140873,0.108,42060.0,42053.0,0.00010314]
[1642684140874,0.008,42060.0,42053.0,0.00010314]
[1642684141873,0.008,42060.0,42056.0,0.00174001]
[1642684142074,0.05,42061.0,42056.0,0.00174001]
[1642684142274,0.499472,42063.0,42056.0,0.00174001]
[1642684142475,0.66177225,42063.0,42056.0,0.00174001]
[1642684142677,0.072026,42062.0,42056.0,0.00174001]
[1642684142876,0.008,42061.0,42056.0,0.00174001]
[1642684143078,0.008,42061.0,42056.0,0.00242886]
[1642684143911,0.66177225,42063.0,42056.0,0.00242886]
[1642684144112,0.66177225,42063.0,42056.0,0.00174001]
[1642684144113,0.072026,42062.0,42056.0,0.00174001]
[1642684144313,0.122026,42062.0,42056.0,0.00295138]
[1642684144716,0.129026,42062.0,42056.0,0.00295138]
[1642684145313,0.129026,42062.0,42056.0,0.00174001]
[1642684145514,0.129026,42062.0,42056.0,0.00295138]
[1642684145916,0.057,42062.0,42056.0,0.00295138]
[1642684146115,0.34,42063.0,42056.0,0.00295138]
[1642684146517,0.34,42063.0,42056.0,0.00174001]
[1642684146817,0.347,42063.0,42058.0,0.00173628]
[1642684147059,0.072026,42062.0,42058.0,0.00173628]
[1642684147264,0.122026,42062.0,42058.0,0.00173628]
[1642684148865,0.130026,42062.0,42058.0,0.00173628]
[1642684150061,0.122026,42062.0,42058.0,0.00173628]
[1642684150710,0.130026,42062.0,42058.0,0.00173628]
[1642684151814,0.130026,42062.0,42056.0,0.00121139]
[1642684152014,0.34,42063.0,42056.0,0.00121139]
[1642684152615,0.34,42063.0,42053.0,0.19751503]
[1642684152816,0.347,42063.0,42056.0,0.00121138]
[1642684153015,0.122026,42062.0,42056.0,0.00121138]
[1642684153815,0.122026,42062.0,42053.0,0.0018357]
[1642684154022,0.109471,42062.0,42056.0,0.00121137]
[1642684154216,0.05,42062.0,42056.0,0.00121137]
[1642684154462,0.44,42063.0,42056.0,0.00121137]
[1642684154663,0.05,42061.0,42056.0,0.00121137]
[1642684154865,0.05,42061.0,42053.0,0.23187361]
[1642684155065,0.008,42062.0,42056.0,0.00121138]
[1642684155267,0.008,42062.0,42060.0,0.22263379]
[1642684156671,0.34,42063.0,42060.0,0.22263379]
[1642684156867,0.004,42062.0,42061.0,0.0017307]
[1642684157073,0.004,42062.0,42061.0,0.2517307]
[1642684157569,0.004,42062.0,42061.0,0.46654471]
[1642684157767,0.004,42062.0,42061.0,0.82138279]
[1642684157970,0.24,42063.0,42061.0,0.2517307]
[1642684158210,0.24,42063.0,42062.0,0.72806673]
[1642684158608,0.24006876,42063.0,42062.0,0.72806673]
[1642684158809,0.24706876,42063.0,42062.0,0.72806673]
[1642684159007,0.24706876,42063.0,42062.0,1.02806673]
[1642684159212,0.24706876,42063.0,42062.0,0.72806673]
[1642684160008,0.24706876,42063.0,42062.0,0.4]
[1642684160208,0.24006876,42063.0,42062.0,0.4]
[1642684160808,0.24206876,42063.0,42062.0,0.4]
[1642684161009,0.24206876,42063.0,42062.0,1.05667138]
[1642684161815,0.24206876,42063.0,42062.0,1.05888992]
[1642684162063,0.24006876,42063.0,42062.0,1.05888992]
[1642684162866,0.24106876,42063.0,42062.0,1.05888992]
[1642684163264,0.24100291,42063.0,42062.0,1.05888992]
[1642684163467,0.24100291,42063.0,42062.0,0.40221854]
[1642684163766,0.24100291,42063.0,42062.0,0.00221854]
[1642684164165,0.24000291,42063.0,42062.0,0.00221854]
[1642684164764,0.24400291,42063.0,42062.0,0.00221854]
[1642684164966,0.24400291,42063.0,42062.0,0.35221854]
[1642684166014,0.24000291,42063.0,42062.0,0.35221854]
[1642684166815,0.24400291,42063.0,42062.0,0.35221854]
[1642684167216,0.24400291,42063.0,42062.0,0.00221854]
[1642684167815,0.24400291,42063.0,42062.0,0.25221854]
[1642684168014,0.24000291,42063.0,42062.0,0.25221854]
[1642684168816,0.24700291,42063.0,42062.0,0.25221854]
[1642684169860,0.24700291,42063.0,42062.0,0.55221854]
[1642684170062,0.24000291,42063.0,42062.0,0.55221854]
[1642684170765,0.24700291,42063.0,42062.0,0.55221854]
[1642684171763,0.24700291,42063.0,42062.0,0.25177724]
[1642684172166,0.24000291,42063.0,42062.0,0.25177724]
[1642684172761,0.24900291,42063.0,42062.0,0.25177724]
[1642684174015,0.24000291,42063.0,42062.0,0.25177724]
[1642684174816,0.24700291,42063.0,42062.0,0.25177724]
[1642684175011,4.24700291,42063.0,42062.0,0.25177724]
[1642684175212,4.31902891,42063.0,42062.0,0.00177724]
[1642684176116,4.31202891,42063.0,42062.0,0.00177724]
[1642684176713,4.31202891,42063.0,42061.0,0.23517279]
[1642684176973,0.072026,42062.0,42061.0,0.23517279]
[1642684177866,1.72452636,42062.0,42061.0,0.23517279]
[1642684178467,1.72452636,42062.0,42060.0,0.22263379]
[1642684180721,1.72452636,42062.0,42060.0,0.20763379]
[1642684180920,1.65750036,42062.0,42061.0,0.30088936]
[1642684181221,0.005,42062.0,42061.0,0.30088936]
[1642684181422,0.005,42062.0,42061.0,0.41706936]
[1642684181621,0.005,42062.0,42061.0,0.54335172]
[1642684181820,0.005,42062.0,42061.0,1.39335172]
[1642684182021,4.24000291,42063.0,42062.0,0.85127183]
[1642684182223,4.24000291,42063.0,42062.0,1.31710616]
[1642684182423,4.24000291,42063.0,42062.0,1.53838816]
[1642684182628,4.24000291,42063.0,42062.0,1.63828816]
[1642684182822,4.24000291,42063.0,42062.0,1.65728816]
[1642684183024,4.24000291,42063.0,42062.0,1.67346816]
[1642684183223,4.24000291,42063.0,42062.0,1.83515945]
[1642684183423,4.24000291,42063.0,42062.0,1.89459545]
[1642684183623,4.24000291,42063.0,42062.0,1.85177454]
[1642684184024,4.24000291,42063.0,42062.0,2.01346806]
[1642684184224,4.24000291,42063.0,42062.0,1.99446806]
[1642684184468,4.24000291,42063.0,42062.0,1.73287454]
[1642684184874,4.24000291,42063.0,42062.0,1.92156579]
[1642684185068,4.24000291,42063.0,42062.0,1.75987454]
[1642684186068,4.24000291,42063.0,42062.0,1.73287454]
[1642684187069,4.24000291,42063.0,42062.0,1.75687454]
[1642684187469,4.23000291,42063.0,42062.0,1.75687454]
[1642684188323,4.23000291,42063.0,42062.0,1.74475454]
[1642684188532,4.23000291,42063.0,42062.0,1.79475454]
[1642684188725,3.6539207,42063.0,42062.0,1.74475454]
[1642684188929,3.44701354,42063.0,42062.0,1.76575454]
[1642684189124,3.30280575,42063.0,42062.0,1.97744232]
[1642684189324,3.30280575,42063.0,42062.0,3.05089541]
[1642684189325,1.87664727,42063.0,42062.0,3.05089541]
[1642684189523,1.83429678,42063.0,42062.0,2.46035032]
[1642684189724,1.35889778,42063.0,42062.0,3.16067963]
[1642684189924,0.88349578,42063.0,42062.0,3.16067963]
[1642684190134,0.79007,42063.0,42062.0,3.13967963]
[1642684190530,0.79007,42063.0,42062.0,2.54134195]
[1642684190727,0.79007,42063.0,42062.0,2.00182562]
[1642684190924,0.79007,42063.0,42062.0,2.02982562]
[1642684192167,0.79007,42063.0,42062.0,2.00182562]
[1642684192968,0.79007,42063.0,42062.0,2.02882562]
[1642684193569,0.79007,42063.0,42062.0,1.90995524]
[1642684193769,0.79007,42063.0,42062.0,3.02295524]
[1642684194169,0.79007,42063.0,42062.0,1.51927583]
[1642684194371,0.79007,42063.0,42062.0,1.45983983]
[1642684194569,0.79007,42063.0,42062.0,1.41223983]
[1642684194768,1.03007,42063.0,42062.0,1.41223983]
[1642684194968,1.03007,42063.0,42062.0,1.44223983]
[1642684195733,1.03007,42063.0,42062.0,1.39223983]
[1642684196133,1.03007,42063.0,42062.0,1.36223983]
[1642684196530,1.03007,42063.0,42062.0,1.35035983]
[1642684196731,1.03007,42063.0,42062.0,1.45025983]
[1642684196929,1.03007,42063.0,42062.0,1.47325983]
[1642684197129,1.03007,42063.0,42062.0,1.37335983]
[1642684197328,1.03007,42063.0,42062.0,1.372088]
[1642684198133,1.03007,42063.0,42062.0,1.349088]
[1642684198933,1.03007,42063.0,42062.0,1.255908]
[1642684199767,0.94084966,42063.0,42062.0,1.255908]
[1642684200168,0.94084966,42063.0,42062.0,1.232908]
[1642684200673,0.94084966,42063.0,42056.0,0.00121142]
[1642684200674,1.34180421,42063.0,42053.0,0.00010314]
[1642684200876,0.00126773,42058.0,42056.0,0.00121142]
[1642684201270,0.00126773,42058.0,42057.0,0.00010314]
[1642684201472,0.26832078,42058.0,42057.0,0.00010314]
[1642684202070,0.26832078,42058.0,42055.0,0.00121137]
[1642684202270,0.26705305,42058.0,42056.0,0.00012033]
[1642684202972,0.34895389,42057.0,42056.0,0.00012033]
[1642684203421,0.34895389,42057.0,42055.0,0.00121138]
[1642684203617,0.34895389,42057.0,42056.0,0.00012033]
[1642684203916,0.42097989,42057.0,42056.0,0.00012033]
[1642684204119,0.47097989,42057.0,42056.0,0.00012033]
[1642684204319,0.49571989,42057.0,42056.0,0.00012033]
[1642684204518,1.14571989,42057.0,42054.0,0.00121139]
[1642684204729,0.722026,42055.0,42054.0,0.00121139]
[1642684204926,1.13143177,42055.0,42054.0,0.00121139]
[1642684205120,1.18143177,42055.0,42054.0,0.0013661]
[1642684205320,1.18143177,42055.0,42054.0,0.00015471]
[1642684205722,0.122026,42055.0,42052.0,0.00121142]
[1642684205927,0.122026,42055.0,42053.0,0.0001719]
[1642684206822,0.122026,42055.0,42052.0,0.00121143]
[1642684207071,0.136026,42055.0,42052.0,0.00121143]
[1642684207267,0.136026,42055.0,42053.0,0.0001719]
[1642684207967,0.136026,42055.0,42052.0,0.00121143]
[1642684208168,0.05,42055.0,42052.0,0.00121143]
[1642684208368,0.05,42055.0,42053.0,0.0001719]
[1642684208671,0.05,42057.0,42053.0,0.0001719]
[1642684208866,0.011,42055.0,42053.0,0.0001719]
[1642684209067,0.072026,42054.0,42053.0,0.0001719]
[1642684209267,0.122026,42054.0,42052.0,0.00121143]
[1642684209471,0.122026,42054.0,42053.0,0.0001719]
[1642684210571,0.122026,42054.0,42052.0,0.00018909]
[1642684211030,0.083026,42054.0,42053.0,0.007]
[1642684211427,0.011,42054.0,42053.0,0.4071719]
[1642684211630,0.011,42054.0,42053.0,0.65315047]
[1642684212226,0.05,42057.0,42053.0,0.64615047]
[1642684213128,0.033,42057.0,42053.0,0.65215047]
[1642684213329,0.083,42057.0,42053.0,0.65215047]
[1642684213530,0.033,42057.0,42053.0,0.65215047]
[1642684213931,0.033,42057.0,42053.0,0.65336188]
[1642684214132,0.033,42057.0,42053.0,0.64736188]
[1642684214332,0.05,42061.0,42053.0,0.64736188]
[1642684214784,0.31630997,42062.0,42053.0,0.64736188]
[1642684214988,0.24,42057.0,42053.0,0.65215047]
[1642684215188,0.24,42057.0,42055.0,0.00121138]
[1642684215587,0.24,42057.0,42056.0,0.00012033]
[1642684216689,0.24,42057.0,42055.0,0.00013752]
[1642684216989,0.305,42057.0,42056.0,0.001]
[1642684217388,0.305,42057.0,42056.0,0.00112033]
[1642684218222,0.312026,42057.0,42056.0,0.00012033]
[1642684218628,0.312026,42057.0,42055.0,0.00013752]
[1642684218830,0.072026,42056.0,42055.0,0.00013752]
[1642684220427,0.072026,42056.0,42055.0,6.679e-05]
[1642684220627,0.072026,42056.0,42054.0,8.398e-05]
[1642684220828,0.309,42057.0,42054.0,8.398e-05]
[1642684221027,0.027,42056.0,42055.0,0.004]
[1642684221435,0.027,42056.0,42055.0,0.00406679]
[1642684222274,0.24,42057.0,42056.0,9.204e-05]
[1642684222874,0.327,42057.0,42056.0,9.204e-05]
[1642684223077,0.399026,42057.0,42056.0,9.204e-05]
[1642684223682,0.327,42057.0,42056.0,0.06083426]
[1642684223983,0.327,42057.0,42056.0,0.78151726]
[1642684224177,0.327,42057.0,42056.0,1.20315565]
[1642684224178,0.24,42057.0,42056.0,1.20315565]
[1642684224376,0.24,42057.0,42056.0,1.30315565]
[1642684224578,0.24,42057.0,42056.0,1.50053546]
[1642684224977,0.24,42057.0,42056.0,1.52353546]
[1642684225821,0.24,42057.0,42056.0,0.99482265]
[1642684226020,0.24,42057.0,42056.0,0.90597826]
[1642684226221,0.24,42057.0,42056.0,0.88297826]